Cogmind - Beta 15 @@@ ROGUE MODE // 2025.07.02 @ 00:02:05 Player: LameThyst Result: Destroyed by D-53 Grenadier with Mini Grenade Launcher Performance ------------- Evolutions (0) 0 Regions Visited (2) 400 Robots Destroyed (2) 10 Value Destroyed (36) 36 Prototype IDs (0) 0 Alien Tech Used (0) 0 Bonus (0) 0 TOTAL SCORE: 446 Bonus ------- None Cogmind --------- Core Integrity 0/250 Matter 52/300 Energy 124/125 System Corruption 0% Temperature Cool (18) Movement Treading (160) Location -10/Mines Parts ------- > --- POWER (1) -------- Light Ion Engine > --- PROPULSION (2) --- Light Treads Light Treads > --- UTILITY (2) ------ Small Storage Unit Utility Shielding > --- WEAPON (2) ------- Medium Laser Assault Rifle > --- INVENTORY (8) ---- Medium Matter Pod (0) Medium Laser Peak State ------------ > --- POWER ------------ Ion Engine > --- PROPULSION ------- Aluminum Leg Aluminum Leg > --- UTILITY ---------- Small Storage Unit Utility Shielding > --- WEAPON ----------- Assault Rifle Rocket Launcher > --- INVENTORY -------- Light Ion Engine Light Treads Light Treads Medium Matter Pod Medium Laser Medium Laser Medium Laser Assault Rifle [Rating: 8] Favorites ----------- Power Ion Engine Engine Ion Engine Propulsion Aluminum Leg Treads Light Treads Leg Aluminum Leg Utility Small Storage Unit Storage Small Storage Unit Protection Utility Shielding Weapon Assault Rifle Energy Gun Medium Laser Ballistic Gun Assault Rifle Launcher Grenade Launcher Build | -11 -10 -10 ------- Run | Yrd Mat Min Slots Evolved . | . . . Power . | . . . Propulsion . | . . . Utility . | . . . Weapon . | . . . Parts Attached 14 | 6 2 6 Power 2 | 1 . 1 Engine 2 | 1 . 1 Core . | . . . Reactor . | . . . Propulsion 4 | 2 . 2 Treads 2 | . . 2 Leg 2 | 2 . . Wheel . | . . . Hover . | . . . Flight . | . . . Utility 2 | 1 1 . Device . | . . . Storage 1 | 1 . . Processor . | . . . Hackware . | . . . Protection 1 | . 1 . Artifact . | . . . Weapon 6 | 2 1 3 Energy Gun 2 | . . 2 Energy Cannon . | . . . Ballistic Gun 2 | 2 . . Ballistic Cannon . | . . . Launcher 2 | . 1 1 Special Weapon . | . . . Impact Weapon . | . . . Slashing Weapon . | . . . Piercing Weapon . | . . . Special Melee Weapon . | . . . Unidentified Prototypes . | . . . Parts Lost 7 | . . 7 Power 1 | . . 1 Propulsion 2 | . . 2 Utility . | . . . Weapon 4 | . . 4 Highest Loss Streak 5 | . . 5 To Critical Strikes . | . . . Average Backups 5 | 2 5 6 Power . | . 1 . Propulsion 1 | 1 2 1 Utility . | . . 1 Weapon 2 | . 2 3 Tool/Special . | . . . Unused Backups 2 | . 1 1 Power . | . . . Propulsion . | . . . Utility . | . . . Weapon 2 | . 1 1 Tool/Special . | . . . Average Slot Usage (%) 91 | . 86 100 Engine 14 | . 14 14 Treads 1 | . . 2 Leg 26 | . 28 25 Storage 14 | . 14 14 Protection 6 | . 1 14 Energy Gun 3 | . . 9 Ballistic Gun 22 | . 27 15 Launcher 1 | . . 2 Peak Build Rating 8 | 6 7 8 Average Rating 5 | 4 6 6 On Entrance 4 | . 6 7 Naked Turns . | . . . Heaviest Build 17 | 14 15 17 Greatest Support 40 | 20 20 40 Greatest Overweight (x) 4 | . . 4 Average Overweight (x) . | . . . Largest Inventory Capacity 8 | 8 8 8 Average Capacity 7 | 6 8 8 Most Carried 8 | 4 8 8 Average Carried 5 | 2 6 6 Final Capacity 8 | 8 8 8 Final Carried 8 | 4 8 2 Class Distribution -------------------- 100% | Mutant Dominant Class ---------------- Mutant | -10/Materials Mutant | -10/Mines Resources | -11 -10 -10 ----------- Run | Yrd Mat Min Matter Collected 266 | 215 46 5 Remotely . | . . . Salvage Created 94 | . 46 48 Parts 2 | . 2 . Haulers Intercepted 1 | . 1 . Recyclers Shooed . | . . . Parts Field Recycled . | . . . Retrieved Matter . | . . . Parts Self-Destructed . | . . . Prevented . | . . . Kills | -11 -10 -10 ------- Run | Yrd Mat Min Combat Hostiles Destroyed 20 | . 1 19 Guns 3 | . . 3 AOE 17 | . 1 16 Classes Destroyed 3 | . 2 1 Hauler 1 | . 1 . Grunt 1 | . 1 . Assembled 19 | . . 19 Best Kill Streak 16 | . 1 16 Combat Bots Only 16 | . 1 16 Max Kills in Single Turn 10 | . 1 10 Gunslinging . | . . . Exploded 10 | . 1 10 Melee . | . . . Uniques/NPCs Destroyed . | . . . Combat | -11 -10 -10 -------- Run | Yrd Mat Min Hostile Shots Fired 62 | . 2 60 Missed 15 | . 1 14 Hits 47 | . 1 46 Projectile 47 | . 1 46 AOE 20 | . . 20 Damage Taken 1174 | . 32 1142 Core 274 | . 20 254 Absorbed by Shields . | . . . Redirected to Shielding 14 | . . 14 Core Remaining (%) 100 | 100 . . Volleys Fired 24 | . 10 14 Largest 2 | . 2 2 Hottest 70 | . 50 70 Shots Fired 47 | . 20 27 Gun 39 | . 17 22 Cannon . | . . . Launcher 8 | . 3 5 Special . | . . . Kinetic 29 | . 17 12 Thermal 10 | . . 10 Explosive 8 | . 3 5 Electromagnetic . | . . . Robot Hit Streak 4 | . 4 3 Robot Miss Streak 3 | . 3 3 Penetration Max . | . . . Secondary Targets 1 | . . 1 Max Gunslinging Chain 1 | . . 1 Shots Hit Robots 22 | . 9 13 Core Hits 49 | . 5 44 Critical Kills . | . . . Critical Parts Destroyed . | . . . Critical Strikes . | . . . Melee Attacks . | . . . Impact . | . . . Slashing . | . . . Piercing . | . . . Sneak Attacks . | . . . Combat Hostiles . | . . . Follow-up Attacks . | . . . Damage Inflicted 1290 | . 215 1075 Guns 235 | . 84 151 Cannons . | . . . Explosions 1055 | . 131 924 Melee . | . . . Ramming . | . . . Kinetic 159 | . 84 75 Thermal 76 | . . 76 Explosive 1055 | . 131 924 Electromagnetic . | . . . Impact . | . . . Slashing . | . . . Piercing . | . . . Highest Corruption . | . . . Average Corruption . | . . . Corruption Purged . | . . . Corruption Blocked . | . . . Overload Shots . | . . . Overflow Damage 2 | . . 2 Projectiles . | . . . Explosions 2 | . . 2 Melee . | . . . Knockbacks . | . . . Impact . | . . . Kinetic . | . . . Secondary . | . . . Self-Inflicted Damage 41 | . 20 21 Shots 2 | . 1 1 Rammed . | . . . Targets Rammed . | . . . Kicked . | . . . Crushed . | . . . Highest Temperature 54 | . 2 54 Average Temperature 17 | . 2 18 Received Heat Transfer 6 | . 6 . Siege Activations . | . . . Martial Activations . | . . . Shielding Activations . | . . . Robots Disrupted . | . . . Combat Hostiles . | . . . Robots Corrupted . | . . . Combat Hostiles . | . . . Parts Fried . | . . . Impact Corruptions . | . . . Robots Melted . | . . . Combat Hostiles . | . . . Parts Melted . | . . . Heat Transferred 222 | . . 222 Parts Sabotaged . | . . . Parts Stolen . | . . . Parts Stripped . | . . . Power Chain Reactions . | . . . Alert | -11 -10 -10 ------- Run | Yrd Mat Min Maximum Alert Level . | . . . Low Security (%) 100 | 100 100 100 Level 1 . | . . . Level 2 . | . . . Level 3 . | . . . Level 4 . | . . . Level 5 . | . . . High Security . | . . . Max Security . | . . . Peak Influence 37 | . 37 20 Initial . | . . . Average 6 | . 12 1 Influence Increases 76 | . 45 31 Destroy 0b10 Robot/C 20 | . 20 . Destroy 0b10 Robot/NC 5 | . 5 . Destroy Leader 2 | . 2 . Destroy Structure 49 | . 18 31 Influence Decreases 76 | . 45 31 Time Decay 56 | . 45 11 Lost Part 20 | . . 20 Squads Dispatched . | . . . Investigation . | . . . Extermination . | . . . Reinforcement . | . . . Assault . | . . . Garrison . | . . . Intercept . | . . . Searches Triggered . | . . . Construction Impeded . | . . . Haulers Reinforced . | . . . Active Scanning Responses . | . . . Cargo Convoy Interrupts . | . . . Stealth | -11 -10 -10 --------- Run | Yrd Mat Min Distress Signals . | . . . Communications Jammed . | . . . Distress Signals . | . . . Times Spotted 26 | . 1 25 Peak Tracking Total 20 | . 1 20 Tactical Retreats 1 | . . 1 Traps | -11 -10 -10 ------- Run | Yrd Mat Min Traps Triggered . | . . . Indirectly . | . . . Trap Hack Attempts . | . . . Triggered . | . . . Disarmed . | . . . Reprogrammed . | . . . Reused . | . . . Traps Extracted . | . . . Installed . | . . . Triggered . | . . . Machines | -11 -10 -10 ---------- Run | Yrd Mat Min Machines Disabled . | . . . Max in Single Turn . | . . . Machines Repaired . | . . . Machines Dismantled . | . . . Machines Sabotaged . | . . . Overloaded Fab Kills . | . . . Hacking | -11 -10 -10 --------- Run | Yrd Mat Min Machines Accessed . | . . . Terminals . | . . . Fabricators . | . . . Repair Stations . | . . . Recycling Units . | . . . Scanalyzers . | . . . Garrison Access . | . . . Total Hacks . | . . . Successful . | . . . Failed . | . . . Catastrophic . | . . . Database Lockouts . | . . . Manual . | . . . Terminals . | . . . Fabricators . | . . . Repair Stations . | . . . Recycling Units . | . . . Scanalyzers . | . . . Garrison Access . | . . . Terminal Hacks . | . . . Fabricator Hacks . | . . . Repair Station Hacks . | . . . Recycling Unit Hacks . | . . . Scanalyzer . | . . . Garrison Access Hacks . | . . . Unauthorized Hacks . | . . . Terminals . | . . . Fabricators . | . . . Repair Stations . | . . . Recycling Units . | . . . Scanalyzers . | . . . Garrison Access . | . . . Data Cores Recovered . | . . . Used . | . . . Hacking Detections . | . . . Full Trace Events . | . . . Feedback Events . | . . . Feedback Blocked . | . . . Robot Schematics Acquired . | . . . Robots Built . | . . . Authchips . | . . . Time . | . . . Total Robot Build Rating . | . . . Part Schematics Acquired . | . . . Parts Built . | . . . Authchips . | . . . Time . | . . . Total Part Build Rating . | . . . Parts Repaired . | . . . Time . | . . . Parts Recycled . | . . . Recycled Matter . | . . . Retrieved Matter . | . . . Retrieved Components . | . . . Parts Scanalyzed . | . . . Part Schematics Acquired . | . . . Parts Damaged . | . . . Bothacking | -11 -10 -10 ------------ Run | Yrd Mat Min Used RIF Installer . | . . . Robots Hacked . | . . . Non-combat . | . . . Combat . | . . . Robot Hacks Applied . | . . . Relay Couplers Released . | . . . Fabnet Peak Effective % . | . . . Robots Rewired . | . . . Allies Hacked . | . . . Hacks Repelled . | . . . Allies | -11 -10 -10 -------- Run | Yrd Mat Min Total Allies . | . . . Largest Group . | . . . Highest-Rated Group . | . . . Highest-Rated Ally . | . . . Total Orders . | . . . Ally Attacks . | . . . Total Damage . | . . . Kills . | . . . Allies Corrupted . | . . . Allies Melted . | . . . Intel | -11 -10 -10 ------- Run | Yrd Mat Min Active Infowar (turns) . | . . . Robot Analysis Total . | . . . Derelict Logs Recovered . | . . . Drone Launches . | . . . Drone Recoveries . | . . . Exploration | -11 -10 -10 ------------- Run | Yrd Mat Min Turns Passed 337 | 78 160 99 Spaces Moved 174 | 58 101 15 Core 7 | 6 . 1 Treads 1 | . . 1 Legs 166 | 52 101 13 Wheels . | . . . Hover . | . . . Flight . | . . . Fastest Speed 50 | 50 120 120 Average Speed 118 | 112 120 131 Slowest Speed 250 | 120 120 250 Overloaded Moves . | . . . Propulsion Burnouts . | . . . Robots Hopped . | . . . Potential Cave-ins . | . . . Cave-ins Triggered . | . . . Exploration Rate (%) 9 | 5 16 8 Regions Visited 2 Branch Regions 1 Pre-discovered Areas . | . . . Known Exits Taken . | . . . Unknown Exits Taken 2 | 1 1 . Scrap Searched . | . . . Spaces Dug . | . . . Terrain Destroyed 61 | . 20 41 Melee . | . . . Projectile . | . . . AOE 61 | . 20 41 Terrain Rammed . | . . . Walls Destroyed . | . . . Machines Disabled . | . . . Actions | -11 -10 -10 --------- Run | Yrd Mat Min Total 253 | 67 119 67 Wait 25 | . . 25 Move 172 | 57 100 15 Hop . | . . . Pick Up 11 | 4 5 2 Fast Attach 8 | 6 1 1 Attach 6 | . . 6 Detach . | . . . Swap 4 | . 2 2 Drop 3 | . 1 2 Fire 24 | . 10 14 Melee . | . . . Ram . | . . . Kick . | . . . Crush . | . . . Escape Stasis . | . . . Rewire . | . . . Trap . | . . . Miscellaneous . | . . . Route ------- -11/Scrapyard -10/Materials -10/Mines History --------- Turn | Location | Event 13 | -11/Scrapyard | Discovered new exit (range 13) 79 | -11/Scrapyard | Entered Materials 211 | -10/Materials | Discovered new exit (range 11) 239 | -10/Materials | Entered Mines 240 | -10/Mines | Assembled infested the area 246 | -10/Mines | Received a Rocket Launcher from a helpful Derelict 283 | -10/Mines | Destroyed 16 combat bots 308 | -10/Mines | Build established: Mutant 328 | -10/Mines | Core integrity fell below 50% 332 | -10/Mines | Core integrity fell below 20% 338 | -10/Mines | Destroyed by D-53 Grenadier with Mini Grenade Launcher Last Messages --------------- 00259_ as-01796 destroyed. 00259_ as-99835 destroyed. [Achievement: Exterminator] 00261_ Rocket Launcher destroyed. 00262_ as-98735 destroyed. 00263_ Grenade Launcher destroyed. 00265_ Acquired Med. Laser. 00295_ as-36471 destroyed. 00295_ Switching to secondary target: as-53969. 00304_ as-53969 destroyed. 00307_ as-01432 destroyed. 00315_ Acquired 5 matter. 00320_ Aluminum Leg destroyed. 00322_ Med. Laser destroyed. 00322_ Aluminum Leg destroyed. 00322_ Assault Rifle destroyed. 00324_ The unstable cave ceiling collapses. 00325_ Ion Engine destroyed. 00326_ The unstable cave ceiling collapses. [Achievement: Achiever] Map ----- +----------------------------------------------------+ | ????????????????????????????????????? | | ????????????????????????????????????? | | ????????????????????????????????????? | | ????????????????????????????????????? | | ????????????????????????????????????? | | ????????????????????????????????????? | | ????????????????????????????????????? | | ????????????????????????????????????? | | ????????????????????????????????????? | | ????????????????????????????????????? | | ????????????????????????????????????? | | ????????????????????????????????????? | | ????????????????????????????????????? | | ???????????????? ?????????????????? | | ?????????????? ????????????????? | | ?????????????? #???????????????? | | ?????????????? ???????????????? | | ?????????????# ###???????????? | | ??????????????# ? ???????????? | | ???????????????# # # ???####????? | | ????????????### # # #### ##???? | | ????????????# # # ##??? | | ???????????## %# dd # #??? | | ???????????#<% ##?? | | ???????????# #?? | | ???????????# @ #? | | ???????????# #? | | ????????????# ## # #? | | ????????????#?????## # #? | | ???????????????????#?## ## ##? | | ??????????????????????#########?###?? | | ????????????????????????????????????? | | ????????????????????????????????????? | | ????????????????????????????????????? | | ????????????????????????????????????? | | ????????????????????????????????????? | | ????????????????????????????????????? | | ????????????????????????????????????? | | ????????????????????????????????????? | | ????????????????????????????????????? | | ????????????????????????????????????? | | ????????????????????????????????????? | | ????????????????????????????????????? | | ????????????????????????????????????? | | ????????????????????????????????????? | | ????????????????????????????????????? | | | | | | | | | +----------------------------------------------------+ Best States ------------- Heat Dissipation 25 Energy Generation 10 Energy Capacity 250 Matter Stores 255 Matter Capacity 300 Sight Range 16 Terrain Scan Density 10 Utility Shielding 33 Evasion (%) 55 Recoil Reduction 2 Item Schematics ----------------- None Robot Schematics ------------------ None Fabricated ------------ Nothing Repaired ---------- Nothing Alien Tech Used ----------------- None Achievements -------------- Achiever Exterminator Hunted Challenges ------------ None Game ------ Seed FissionHellfireShovel Manual? 0 Play Time 00:06:57 Cumulative 44.0 hours Start 2025.07.01 @ 23:57:25 End 2025.07.02 @ 00:02:05 Sessions 1 Manual Loads 0 Difficulty Rogue Special Mode None Game No. 52 Rogue 52 Adventurer 0 Explorer 0 Win Type - Total 0 Types 0/0/0/0/0/0/0/0/0/0 Lore% 16 Gallery% 32 Achievement% 25 Wizard Run 0 Options --------- Layout 1 ASCII 0 Keyboard 0 Movement Mouse Keybinds 0 Fullscreen 2 Font 48/Smallcaps Map View 50x35 Zoom Use 0% Tactical HUD 1 Map Filters NONE Filters NONE Steam 0 RUN: 564b8dad-200a-4576-8238-34a22c902e6a